bitfinex/quotes_BTCUSD_20250711
["timestamp","ask_amount","ask_price","bid_price","bid_amount"]
[1752248884513,0.68331922,117270.0,117260.0,0.00212]
[1752248884944,0.51277233,117270.0,117260.0,0.00212]
[1752248885155,0.37769189,117270.0,117260.0,0.00212]
[1752248885366,0.47857781,117270.0,117260.0,0.00212]
[1752248885573,0.34349781,117270.0,117260.0,0.00212]
[1752248885779,0.13857781,117270.0,117260.0,0.08754993]
[1752248885988,0.14710448,117270.0,117260.0,0.09076993]
[1752248886195,0.34323211,117270.0,117260.0,0.09076993]
[1752248886407,0.1961445,117260.0,117250.0,0.00793]
[1752248886563,0.18761688,117260.0,117250.0,0.09225993]
[1752248886774,0.18761688,117260.0,117250.0,0.00471]
[1752248886775,0.69528667,117260.0,117250.0,0.00471]
[1752248886978,0.55010432,117250.0,117240.0,0.00256043]
[1752248887177,1.19584411,117250.0,117240.0,0.00256043]
[1752248887357,1.19584411,117250.0,117200.0,0.04783315]
[1752248887569,0.01706084,117220.0,117210.0,0.08042993]
[1752248887771,0.20558198,117240.0,117210.0,0.08254993]
[1752248887990,0.13508,117230.0,117210.0,0.09824993]
[1752248888189,0.32274492,117230.0,117210.0,0.10038285]
[1752248888490,0.13508,117230.0,117210.0,0.08254993]
[1752248888696,0.13508,117230.0,117220.0,0.0157]
[1752248888917,0.0004975,117230.0,117220.0,0.10324993]
[1752248889090,0.00902708,117230.0,117220.0,0.10324993]
[1752248889327,0.0004975,117230.0,117220.0,0.10324993]
[1752248889459,0.00902708,117230.0,117220.0,0.10324993]
[1752248889666,0.0024975,117230.0,117220.0,0.10624993]
[1752248890496,0.0024975,117230.0,117220.0,0.12534993]
[1752248890696,0.0024975,117230.0,117220.0,0.81969091]
[1752248891030,0.0024975,117230.0,117220.0,0.64054068]
[1752248891259,0.0024975,117230.0,117220.0,0.12634993]
[1752248891422,0.0024975,117230.0,117220.0,0.12848267]
[1752248891621,0.0024975,117230.0,117220.0,0.12634993]
[1752248892991,0.0024975,117230.0,117220.0,0.10724993]
[1752248892992,0.20722199,117230.0,117220.0,0.10724993]
[1752248893202,0.02808697,117230.0,117220.0,0.09154993]
[1752248893372,0.03661713,117230.0,117220.0,0.09154993]
[1752248893573,0.02808697,117230.0,117220.0,0.09154993]
[1752248893806,0.01102715,117230.0,117220.0,0.09154993]
[1752248894019,0.0024975,117230.0,117220.0,0.09154993]
[1752248894237,0.0024975,117230.0,117220.0,0.004]
[1752248894238,0.9353955,117230.0,117220.0,0.004]
[1752248894451,0.9333855,117230.0,117220.0,0.004]
[1752248894878,0.9333855,117230.0,117220.0,0.003]
[1752248895290,0.76772571,117230.0,117220.0,0.003]
[1752248895505,1.2733855,117230.0,117220.0,0.003]
[1752248895688,1.2743855,117230.0,117220.0,0.003]
[1752248896254,1.35981543,117230.0,117220.0,0.003]
[1752248896459,0.18771278,117200.0,117190.0,0.00036642]
[1752248896674,1.06447257,117200.0,117190.0,0.00036642]
[1752248896878,1.20264257,117200.0,117190.0,0.00036642]
[1752248897290,6.41749335,117200.0,117190.0,0.00036642]
[1752248897497,1.5380725,117200.0,117190.0,0.00236642]
[1752248898126,1.5380725,117200.0,117190.0,0.00036642]
[1752248898330,1.4049525,117200.0,117190.0,0.00036642]
[1752248898532,1.5400325,117200.0,117190.0,0.00036642]
[1752248899251,0.55019602,117190.0,117180.0,0.00218997]
[1752248899462,1.20884818,117190.0,117180.0,0.00218997]
[1752248899874,1.07372818,117190.0,117180.0,0.00218997]
[1752248900081,0.68738839,117190.0,117180.0,0.00218997]
[1752248900531,0.68788589,117190.0,117180.0,0.00218997]
[1752248901092,0.68888589,117190.0,117180.0,0.00218997]
[1752248901301,0.55376589,117190.0,117180.0,0.00218997]
[1752248901513,0.67368589,117190.0,117180.0,0.00218997]
[1752248901990,1.21114568,117190.0,117180.0,0.00218997]
[1752248902418,1.29657561,117190.0,117180.0,0.00218997]
[1752248903590,0.83555692,117190.0,117180.0,0.00218997]
[1752248903819,1.34121671,117190.0,117180.0,0.00218997]
[1752248904309,0.18777702,117160.0,117150.0,0.10618239]
[1752248904575,0.32289702,117160.0,117150.0,0.10618239]
[1752248904798,0.32490702,117160.0,117150.0,0.10823239]
[1752248905270,0.14369468,117160.0,117150.0,0.10823239]
[1752248905515,0.02560454,117160.0,117150.0,0.10823239]
[1752248905738,0.32494688,117160.0,117150.0,0.10618239]
[1752248905992,0.32799688,117160.0,117150.0,0.10618239]
[1752248906454,0.83365667,117160.0,117150.0,0.11218239]
[1752248907369,0.32799688,117160.0,117150.0,0.10918239]
[1752248907550,0.32799688,117160.0,117150.0,0.10618239]
[1752248908548,1.2904866,117160.0,117150.0,0.10618239]
[1752248908757,0.54903688,117160.0,117150.0,0.10618239]
[1752248908958,0.66799724,117160.0,117150.0,0.10618239]
[1752248909550,0.53283724,117160.0,117150.0,0.10618239]
[1752248909748,0.53631154,117160.0,117150.0,0.10723239]
[1752248909947,0.50076482,117160.0,117150.0,0.10723239]
[1752248910174,0.50930001,117160.0,117150.0,0.10723239]
[1752248910535,0.51131001,117160.0,117150.0,0.10723239]
[1752248910833,0.50277475,117160.0,117150.0,0.10723239]
[1752248911070,0.51130994,117160.0,117150.0,0.10723239]
[1752248911257,0.68201717,117160.0,117150.0,0.10723239]
[1752248911461,0.51131045,117160.0,117150.0,0.10723239]
[1752248911658,0.35907993,117160.0,117150.0,0.10723239]
[1752248911870,0.36560468,117160.0,117150.0,0.10723239]
[1752248912279,0.37413987,117160.0,117150.0,0.10723239]
[1752248912480,0.35706957,117160.0,117150.0,0.10723239]
[1752248912682,0.68000724,117160.0,117150.0,0.10723239]
[1752248913124,0.66494731,117160.0,117150.0,0.10723239]
[1752248913331,0.66799731,117160.0,117150.0,0.10723239]
[1752248913743,1.16512184,117160.0,117150.0,0.10518239]
[1752248913999,1.2636153,117160.0,117150.0,0.10518239]
[1752248914516,1.1284553,117160.0,117150.0,0.10518239]
[1752248914811,0.52430205,117160.0,117150.0,0.10518239]
[1752248914994,0.65946205,117160.0,117150.0,0.10518239]
[1752248915201,0.66799716,117160.0,117150.0,0.10723239]
[1752248915346,0.67653205,117160.0,117150.0,0.10723239]
[1752248915548,0.66799716,117160.0,117150.0,0.10518239]
[1752248916003,0.66799716,117160.0,117150.0,0.10723239]
[1752248916177,0.66799716,117160.0,117150.0,0.10518239]
[1752248917056,0.66803716,117160.0,117150.0,0.10518239]
[1752248917355,0.52430183,117160.0,117150.0,0.10723239]
[1752248917538,0.68201724,117160.0,117150.0,0.10723239]
[1752248917743,0.67348235,117160.0,117150.0,0.10723239]
[1752248918068,0.66494702,117160.0,117150.0,0.10723239]
[1752248918479,0.66498702,117160.0,117150.0,0.10723239]
[1752248918689,0.65645198,117160.0,117150.0,0.10723239]
[1752248919029,0.52978702,117160.0,117150.0,0.10723239]
[1752248919226,0.67352235,117160.0,117150.0,0.10723239]
[1752248920552,0.14373482,117160.0,117150.0,0.10723239]
[1752248920671,0.00853475,117160.0,117150.0,0.10723239]
[1752248920871,0.15226972,117160.0,117150.0,0.19266232]
[1752248921217,0.22329289,117190.0,117150.0,0.71695211]
[1752248921425,0.1352,117180.0,117160.0,0.12309376]
[1752248921650,0.1352,117180.0,117170.0,0.00213]
[1752248921651,0.14373329,117180.0,117170.0,0.00213]
[1752248921883,0.1352,117180.0,117170.0,0.08755993]
[1752248922101,0.14373329,117180.0,117170.0,0.08755993]
[1752248922564,0.1352,117180.0,117170.0,0.08755993]
[1752248922751,0.1866513,117190.0,117170.0,0.12308993]
[1752248923187,0.17811815,117190.0,117170.0,0.12308993]
[1752248923625,0.3424975,117190.0,117180.0,0.08835993]
[1752248923833,0.4776975,117190.0,117180.0,0.08835993]
[1752248924045,0.4947627,117190.0,117180.0,0.09048993]
[1752248924258,0.48622999,117190.0,117180.0,0.09048993]
[1752248924515,0.01103006,117190.0,117180.0,0.10548993]
[1752248924721,0.01956284,117190.0,117180.0,0.10255993]
[1752248924932,0.02809556,117190.0,117180.0,0.10255993]
[1752248925122,0.02809541,117190.0,117180.0,0.08755993]
[1752248925420,0.20729208,117190.0,117180.0,0.08755993]
[1752248925620,0.03662906,117190.0,117180.0,0.08755993]
[1752248925858,0.34245208,117190.0,117180.0,0.08755993]
[1752248926057,0.83723638,117190.0,117180.0,0.08542993]
[1752248926261,0.83723638,117190.0,117160.0,0.28829]
[1752248926262,0.02560046,117180.0,117160.0,0.28829]
[1752248926465,0.20481307,117180.0,117170.0,0.08542993]
[1752248926668,0.19627849,117180.0,117170.0,0.08755993]
[1752248926847,0.1522271,117180.0,117170.0,0.08755993]
[1752248927067,0.33143856,117180.0,117170.0,0.08755993]
[1752248927249,0.1522271,117180.0,117170.0,0.08755993]
[1752248927467,0.15222666,117180.0,117170.0,0.08755993]
[1752248927668,0.16076024,117180.0,117170.0,0.08755993]
[1752248928054,0.18777688,117160.0,117150.0,0.10518239]
[1752248928254,0.19296688,117160.0,117150.0,0.10518239]
[1752248928466,0.15742016,117160.0,117150.0,0.10518239]
[1752248928822,0.32812688,117160.0,117150.0,0.10518239]
[1752248929171,0.32812688,117160.0,117150.0,0.10818239]
[1752248929590,1.2887366,117160.0,117150.0,0.10818239]
[1752248930011,1.20330667,117160.0,117150.0,0.10818239]
[1752248930181,0.69764688,117160.0,117150.0,0.10818239]
[1752248930371,0.68174688,117160.0,117150.0,0.10518239]
[1752248930688,1.18740667,117160.0,117150.0,0.10518239]
[1752248931105,1.20330667,117160.0,117150.0,0.10518239]
[1752248931680,1.05224667,117160.0,117150.0,0.10518239]
[1752248931885,0.66614688,117160.0,117150.0,0.10518239]
[1752248932525,1.17180667,117160.0,117150.0,0.10518239]
[1752248932981,0.52777688,117160.0,117150.0,0.10518239]
[1752248933191,0.67147214,117160.0,117150.0,0.10518239]
[1752248933350,0.15222972,117160.0,117150.0,0.19061232]
[1752248933551,0.00853475,117160.0,117150.0,0.19061232]
[1752248933774,0.16929957,117160.0,117150.0,0.19061232]
[1752248933926,0.01706957,117160.0,117150.0,0.19061232]
[1752248934131,0.14369468,117160.0,117150.0,0.20954232]
[1752248934632,0.01706957,117160.0,117150.0,0.20661232]
[1752248934841,0.76414013,117160.0,117150.0,0.10518239]
[1752248935048,0.89930013,117160.0,117150.0,0.10518239]
[1752248935268,0.25848034,117160.0,117150.0,0.10518239]
[1752248935484,0.39364034,117160.0,117150.0,0.10518239]
[1752248937567,0.89930013,117160.0,117150.0,0.10518239]
[1752248938041,0.83180667,117160.0,117150.0,0.10518239]
[1752248938271,0.33151163,117160.0,117150.0,0.10518239]
[1752248938498,0.32297688,117160.0,117150.0,0.10518239]
[1752248938688,0.31444191,117160.0,117150.0,0.10518239]
[1752248938953,0.31765191,117160.0,117150.0,0.10518239]
[1752248939621,0.18245191,117160.0,117150.0,0.10518239]
[1752248940250,0.31761191,117160.0,117150.0,0.10518239]
[1752248941510,0.51390344,117170.0,117150.0,0.10518239]
[1752248941724,0.00321,117180.0,117160.0,0.08542993]
[1752248941941,0.03130621,117190.0,117160.0,0.12409376]
[1752248942152,0.0313057,117190.0,117160.0,0.12195993]
[1752248942387,0.13548,117180.0,117160.0,0.12409376]
[1752248942608,0.14651006,117190.0,117170.0,0.00293]
[1752248942891,0.16357548,117190.0,117180.0,0.08542993]
[1752248943105,0.48651014,117190.0,117180.0,0.08542993]
[1752248943340,0.495043,117190.0,117180.0,0.08542993]
[1752248943564,0.495043,117190.0,117180.0,0.08142993]
[1752248943802,0.503576,117190.0,117180.0,0.08142993]
[1752248944020,0.66570638,117190.0,117180.0,0.08142993]
[1752248944246,0.00853351,117180.0,117160.0,0.032]
[1752248944468,0.01706658,117180.0,117170.0,0.08542993]
[1752248944696,0.02560016,117180.0,117170.0,0.08542993]
[1752248944933,0.03413382,117180.0,117170.0,0.08542993]
[1752248945194,0.20481155,117180.0,117170.0,0.08542993]
[1752248945423,0.01706658,117180.0,117170.0,0.08542993]
[1752248945644,0.02560016,117180.0,117170.0,0.08542993]
[1752248945880,0.01706658,117180.0,117170.0,0.08542993]
[1752248946351,0.02560002,117180.0,117170.0,0.08542993]
[1752248946568,0.18776085,117170.0,117160.0,0.001]
[1752248946779,1.1369241,117170.0,117160.0,0.001]
[1752248946980,0.17924191,117160.0,117150.0,0.10518239]
[1752248947185,0.32333702,117160.0,117150.0,0.10518239]
[1752248947396,0.32333702,117160.0,117150.0,0.19061232]
[1752248947397,0.01706957,117160.0,117150.0,0.19061232]
[1752248947606,0.13556,117160.0,117150.0,0.19354232]
[1752248947813,0.58386398,117190.0,117150.0,0.20954232]
[1752248948029,0.00853402,117170.0,117160.0,0.10455993]
[1752248948249,0.3404521,117180.0,117160.0,0.08542993]
[1752248948250,0.33192019,117180.0,117160.0,0.08542993]
[1752248948467,0.01706826,117170.0,117160.0,0.08542993]
[1752248948679,0.01706819,117170.0,117160.0,0.08542993]
[1752248948884,0.0256025,117170.0,117160.0,0.08542993]
[1752248949102,0.01706819,117170.0,117160.0,0.08542993]
[1752248949322,0.00853402,117170.0,117160.0,0.08542993]
[1752248949540,0.15591694,117180.0,117160.0,0.08742993]
[1752248949768,0.15270694,117180.0,117160.0,0.08642993]
[1752248949996,0.14441322,117180.0,117160.0,0.08942993]
[1752248950214,0.17001382,117180.0,117160.0,0.09142993]
[1752248950423,0.02560257,117170.0,117160.0,0.08642993]
[1752248950631,0.02560257,117170.0,117160.0,0.08542993]
[1752248950840,0.00853409,117170.0,117160.0,0.08542993]
[1752248951251,0.00853395,117170.0,117160.0,0.08542993]
[1752248951474,0.01706804,117170.0,117160.0,0.08542993]
[1752248951699,0.01706804,117170.0,117160.0,0.08742993]
[1752248951902,0.00853395,117170.0,117160.0,0.08842993]
[1752248952118,0.14735351,117180.0,117160.0,0.08642993]
[1752248952330,0.15294673,117180.0,117160.0,0.08542993]
[1752248952544,0.60919306,117190.0,117160.0,0.09042993]
[1752248952804,0.15294666,117180.0,117160.0,0.09142993]
[1752248953026,0.00853322,117180.0,117160.0,0.10782993]
[1752248953229,2.0,117170.0,117160.0,0.10482993]
[1752248953405,2.0,117170.0,117160.0,0.12246376]
[1752248953642,2.0,117170.0,117160.0,0.12546376]
[1752248953864,2.0,117170.0,117160.0,0.12332993]
[1752248954070,2.0,117170.0,117160.0,0.10782993]
[1752248954691,2.0,117170.0,117160.0,0.10682993]
[1752248954903,2.0,117170.0,117160.0,0.09243993]
[1752248955998,2.0,117170.0,117160.0,0.12627376]
[1752248956210,2.0,117170.0,117160.0,0.90541355]
[1752248956420,2.0,117170.0,117160.0,0.90327972]
[1752248956639,2.0,117170.0,117160.0,1.12266759]
[1752248956825,2.0,117170.0,117160.0,1.11413277]
[1752248956971,2.0,117170.0,117160.0,1.13120248]
[1752248957176,2.0,117170.0,117160.0,1.12919248]
[1752248957378,2.0,117170.0,117160.0,1.20565844]
[1752248957581,2.0,117170.0,117160.0,1.20365844]
[1752248958000,2.0,117170.0,117160.0,1.20565844]
[1752248958203,2.0,117170.0,117160.0,1.20465844]
[1752248958660,2.0,117170.0,117160.0,1.20965844]
[1752248958661,2.001,117170.0,117160.0,1.20965844]
[1752248959705,2.001,117170.0,117160.0,1.21166844]
[1752248961848,2.001,117170.0,117160.0,1.55066844]
[1752248962116,2.001,117170.0,117160.0,1.55366844]
[1752248963148,2.001,117170.0,117160.0,1.50366844]
[1752248963374,2.001,117170.0,117160.0,0.78462674]
[1752248963597,2.001,117170.0,117160.0,0.72441993]
[1752248963808,2.001,117170.0,117160.0,0.36891993]
[1752248966726,2.001,117170.0,117160.0,0.37191993]
[1752248966994,2.001,117170.0,117160.0,0.38901993]
[1752248967152,2.001,117170.0,117160.0,0.38601993]
[1752248967350,2.001,117170.0,117160.0,0.36891993]
[1752248969266,2.26077993,117170.0,117160.0,0.008]
[1752248969448,3.29221057,117170.0,117160.0,0.008]
[1752248969855,3.20678064,117170.0,117160.0,0.008]
[1752248970381,0.21164191,117160.0,117150.0,0.10518239]
[1752248970612,0.21458191,117160.0,117150.0,0.10518239]
[1752248971277,0.7202417,117160.0,117150.0,0.10518239]
[1752248972253,0.7232317,117160.0,117150.0,0.10518239]
[1752248972427,1.0642317,117160.0,117150.0,0.10518239]
[1752248972613,0.55857191,117160.0,117150.0,0.10518239]
[1752248972813,1.0642317,117160.0,117150.0,0.10518239]
[1752248973856,1.0632317,117160.0,117150.0,0.10518239]
[1752248974068,1.0652317,117160.0,117150.0,0.10518239]
[1752248974434,0.55957191,117160.0,117150.0,0.10518239]
[1752248975434,1.0652317,117160.0,117150.0,0.10518239]
[1752248976097,1.2017917,117160.0,117150.0,0.10518239]
[1752248976299,1.0652317,117160.0,117150.0,0.10518239]
[1752248976517,1.2017917,117160.0,117150.0,0.10518239]
[1752248976937,0.69613191,117160.0,117150.0,0.10518239]
[1752248977154,1.2017917,117160.0,117150.0,0.10518239]
[1752248977885,0.69613191,117160.0,117150.0,0.10518239]
[1752248978561,1.2017917,117160.0,117150.0,0.10518239]
[1752248979755,0.69609176,117160.0,117150.0,0.10518239]
[1752248979934,0.52538504,117160.0,117150.0,0.10518239]
[1752248980129,0.48151,117160.0,117150.0,0.19262232]
[1752248980331,0.13956,117160.0,117150.0,0.19262232]
[1752248980740,0.16712468,117160.0,117150.0,0.19262232]
[1752248980944,0.16712468,117160.0,117150.0,0.19061232]
[1752248980945,0.16177957,117160.0,117150.0,0.19061232]
[1752248981180,0.17031468,117160.0,117150.0,0.19061232]
[1752248981419,0.16189957,117160.0,117150.0,0.19061232]
[1752248981621,0.17896973,117160.0,117150.0,0.19061232]
[1752248981746,0.17051454,117160.0,117150.0,0.19061232]
[1752248982249,0.17904994,117160.0,117150.0,0.19061232]
[1752248982613,0.33268709,117160.0,117150.0,0.19061232]
[1752248982813,0.83834688,117160.0,117150.0,0.10518239]
[1752248982936,0.87004688,117160.0,117150.0,0.10518239]
[1752248983382,0.36438709,117160.0,117150.0,0.10518239]
[1752248983590,0.02522,117160.0,117150.0,0.10518239]
[1752248983798,0.04228994,117160.0,117150.0,0.19061232]
[1752248983998,0.34963673,117160.0,117150.0,0.19061232]
[1752248984305,0.17892987,117160.0,117150.0,0.19061232]
[1752248984545,0.1416,117160.0,117150.0,0.19278232]
[1752248984765,0.13964,117160.0,117150.0,0.19278232]
[1752248984986,0.1567095,117160.0,117150.0,0.19278232]
[1752248985203,0.35817155,117160.0,117150.0,0.19061232]
[1752248985427,0.87072674,117160.0,117150.0,0.19061232]
[1752248986250,0.86972674,117160.0,117150.0,0.19061232]
[1752248986467,0.70555535,117160.0,117150.0,0.19061232]
[1752248986672,0.66451965,117160.0,117150.0,0.19061232]
[1752248986884,0.16739505,117160.0,117150.0,0.19061232]
[1752248987132,0.33810228,117160.0,117150.0,0.19061232]
[1752248987336,0.32956724,117160.0,117150.0,0.19061232]
[1752248987852,0.36266724,117160.0,117150.0,0.19061232]
[1752248988492,0.17489,117160.0,117150.0,0.19061232]
[1752248988867,0.00515,117160.0,117150.0,0.19061232]
[1752248989075,2.0,117170.0,117150.0,0.36350178]
[1752248989285,2.13676,117170.0,117160.0,0.10112993]
[1752248989511,2.13676,117170.0,117160.0,0.08759993]
[1752248990145,2.15897826,117170.0,117160.0,0.08542993]
[1752248990345,2.14191,117170.0,117160.0,0.08542993]
[1752248990554,2.15044409,117170.0,117160.0,0.08542993]
[1752248990759,2.16097826,117170.0,117160.0,0.08542993]
[1752248991035,2.1695125,117170.0,117160.0,0.08542993]
[1752248991266,2.17804688,117170.0,117160.0,0.08542993]
[1752248991479,2.17804681,117170.0,117160.0,0.08542993]
[1752248991898,2.18658134,117170.0,117160.0,0.08542993]
[1752248992109,2.18658127,117170.0,117160.0,0.08542993]
[1752248992326,2.17804681,117170.0,117160.0,0.08542993]
[1752248992751,2.14391,117170.0,117160.0,0.08542993]
[1752248992961,2.002,117170.0,117160.0,0.08759993]
[1752248993166,2.13964,117170.0,117160.0,0.08759993]
[1752248993675,2.14479,117170.0,117160.0,0.08542993]
[1752248994364,2.00815,117170.0,117160.0,0.08542993]
[1752248994591,2.003,117170.0,117160.0,0.08759993]
[1752248994815,2.13956,117170.0,117160.0,0.08759993]
[1752248995055,2.13952,117170.0,117160.0,0.08759993]
[1752248995693,2.50173804,117170.0,117160.0,0.08542993]
[1752248995942,2.003,117170.0,117160.0,0.08759993]
[1752248996162,2.13948,117170.0,117160.0,0.10543376]
[1752248996585,2.13948,117170.0,117160.0,0.08977376]
[1752248997316,2.003,117170.0,117160.0,0.56988048]
[1752248997535,2.003,117170.0,117160.0,0.39703993]
[1752248997738,2.003,117170.0,117160.0,0.56774665]
[1752248997963,2.003,117170.0,117160.0,0.39703993]
[1752248998142,2.003,117170.0,117160.0,0.61061639]
[1752248998364,2.003,117170.0,117160.0,0.43137434]
[1752248998604,2.003,117170.0,117160.0,0.39703993]
[1752248998811,2.003,117170.0,117160.0,0.37723993]
[1752248999537,2.002,117170.0,117160.0,0.37723993]
[1752248999760,2.0,117170.0,117160.0,0.37723993]
[1752248999951,2.0,117170.0,117160.0,0.37823993]
[1752249000156,2.0,117170.0,117160.0,0.38123993]
[1752249000435,2.0,117170.0,117160.0,0.43448628]
[1752249000745,2.0,117170.0,117160.0,0.39983993]
[1752249001064,2.0,117170.0,117160.0,0.40183993]
[1752249001237,2.0,117170.0,117160.0,0.10923993]
[1752249001455,2.07238682,117170.0,117160.0,0.09046993]
[1752249001672,2.71444661,117170.0,117160.0,0.09046993]
[1752249002087,2.71444653,117170.0,117160.0,0.09046993]
[1752249002308,2.02175,117170.0,117160.0,0.09046993]
[1752249002509,2.83493064,117170.0,117160.0,0.08746993]
[1752249002712,2.86803064,117170.0,117160.0,0.08746993]
[1752249002919,2.86803064,117170.0,117160.0,0.08646993]
[1752249003061,2.36237085,117170.0,117160.0,0.08746993]
[1752249003268,2.35383661,117170.0,117160.0,0.08746993]
[1752249003490,2.37090538,117170.0,117160.0,0.08746993]
[1752249004476,2.35383668,117170.0,117160.0,0.08746993]
[1752249004679,2.85949647,117170.0,117160.0,0.08746993]
[1752249004879,2.85949647,117170.0,117160.0,0.08742993]
[1752249005508,2.35383668,117170.0,117160.0,0.08742993]
[1752249005716,2.85949647,117170.0,117160.0,0.08742993]
[1752249006175,2.85941647,117170.0,117160.0,0.08742993]
[1752249006347,2.85088194,117170.0,117160.0,0.08742993]
[1752249007032,2.71460194,117170.0,117160.0,0.08742993]
[1752249007160,2.8593764,117170.0,117160.0,0.08742993]
[1752249007800,2.8593764,117170.0,117160.0,0.08642993]
[1752249008763,2.8593764,117170.0,117160.0,0.08542993]
[1752249009183,2.35371661,117170.0,117160.0,0.08542993]
[1752249009377,2.8593764,117170.0,117160.0,0.08546993]
[1752249009589,2.35371661,117170.0,117160.0,0.08546993]
[1752249009789,2.8593764,117170.0,117160.0,0.08546993]
[1752249010632,2.35371661,117170.0,117160.0,0.08546993]
[1752249010793,2.8593764,117170.0,117160.0,0.08546993]
[1752249011520,2.35371661,117170.0,117160.0,0.08546993]
[1752249012511,2.8593764,117170.0,117160.0,0.08546993]
[1752249012919,2.35371661,117170.0,117160.0,0.08546993]
[1752249013474,2.8593764,117170.0,117160.0,0.08546993]
[1752249013909,3.1993764,117170.0,117160.0,4e-05]
[1752249016973,3.29934718,117170.0,117160.0,4e-05]
[1752249017750,0.56578276,117160.0,117150.0,0.10518239]
[1752249018009,5.5512572,117150.0,117140.0,1e-08]
[1752249018232,0.47581336,117140.0,117130.0,0.00193595]
[1752249018438,0.8580523,117140.0,117130.0,0.00193595]
[1752249018707,0.21643251,117140.0,117130.0,0.00193595]
[1752249018941,0.7220923,117140.0,117130.0,0.00193595]
[1752249019134,0.8580523,117140.0,117130.0,0.00193595]
[1752249019335,0.72258919,117140.0,117130.0,0.00193595]
[1752249019568,0.85850919,117140.0,117130.0,0.00193595]
[1752249019772,0.23400269,117140.0,117130.0,0.00193595]
[1752249019971,0.32938612,117140.0,117130.0,0.00193595]
[1752249020193,0.33792261,117140.0,117130.0,0.00193595]
[1752249020413,0.34292261,117140.0,117130.0,0.00193595]
[1752249020638,0.01961952,117140.0,117130.0,0.08947588]
[1752249020785,0.00049689,117140.0,117130.0,0.08947588]
[1752249021001,0.1509931,117140.0,117130.0,0.12187588]
[1752249021292,0.34733847,117140.0,117130.0,0.08947588]
[1752249021496,0.84108577,117140.0,117130.0,0.08746588]
[1752249021709,0.33242598,117140.0,117130.0,0.08746588]
[1752249021914,0.02156967,117140.0,117130.0,0.08947588]
[1752249022115,0.3452589,117140.0,117130.0,0.08947588]
[1752249022319,0.33577262,117140.0,117130.0,0.08947588]
[1752249022739,0.33777262,117140.0,117130.0,0.08947588]
[1752249022947,0.00349689,117140.0,117130.0,0.08947588]
[1752249023160,0.00349689,117140.0,117130.0,0.10557588]
[1752249023384,0.00349689,117140.0,117130.0,0.12487588]
[1752249024006,0.00149689,117140.0,117130.0,0.12487588]
[1752249024434,0.00049689,117140.0,117130.0,0.12701026]
[1752249024645,0.00049689,117140.0,117130.0,0.26297026]
[1752249024850,0.00049689,117140.0,117130.0,0.26083588]
[1752249025020,0.16156461,117160.0,117140.0,0.0329]
[1752249025283,0.16156461,117160.0,117150.0,0.08743993]
[1752249025489,0.17009958,117160.0,117150.0,0.08743993]
[1752249025693,0.16148461,117160.0,117150.0,0.08743993]
[1752249025935,0.0341398,117160.0,117150.0,0.08743993]
[1752249026174,2.68146194,117170.0,117150.0,0.08743993]
[1752249026175,2.01364409,117170.0,117150.0,0.08743993]
[1752249026416,2.01364409,117170.0,117160.0,0.0164]
[1752249026417,2.16348221,117170.0,117160.0,0.0164]
[1752249026663,2.15494797,117170.0,117160.0,0.10383993]
[1752249026928,2.36370085,117170.0,117160.0,0.08542993]
[1752249027160,3.20936064,117170.0,117160.0,0.08542993]
[1752249027382,3.19256064,117170.0,117160.0,0.08542993]
[1752249028110,3.05668064,117170.0,117160.0,0.08542993]
[1752249028358,2.67921487,117170.0,117160.0,0.08542993]
[1752249028585,3.17734064,117170.0,117160.0,0.08542993]
[1752249029106,2.003,117170.0,117160.0,0.30511567]
[1752249029329,1.99276126,117170.0,117160.0,0.8066317]
[1752249029554,1.99276126,117170.0,117160.0,0.43677191]
[1752249029772,1.99276126,117170.0,117160.0,0.4453071]
[1752249030007,1.99276126,117170.0,117160.0,0.45384214]
[1752249030472,1.99276126,117170.0,117160.0,0.45384221]
[1752249030694,1.99176126,117170.0,117160.0,0.4453071]
[1752249030917,1.99176126,117170.0,117160.0,0.4463071]
[1752249031142,1.99176126,117170.0,117160.0,0.44626688]
[1752249031403,1.99176126,117170.0,117160.0,0.44526688]
[1752249031626,1.99176126,117170.0,117160.0,0.44826688]
[1752249031851,1.99376126,117170.0,117160.0,0.46533659]
[1752249032065,1.99376126,117170.0,117160.0,0.44826688]
[1752249032272,1.99376126,117170.0,117160.0,0.46734659]
[1752249032489,1.99376126,117170.0,117160.0,1.03754723]
[1752249032711,1.95535819,117170.0,117160.0,1.46208414]
[1752249032928,1.94682707,117170.0,117160.0,1.46208414]
[1752249033355,1.90843703,117170.0,117160.0,1.46208414]
[1752249033820,1.89790591,117170.0,117160.0,1.45908414]
[1752249034029,1.85224699,117170.0,117160.0,1.46107414]
[1752249034239,1.84371587,117170.0,117160.0,1.46107414]
[1752249034654,1.80532583,117170.0,117160.0,1.46107414]
[1752249035095,1.79679471,117170.0,117160.0,1.46107414]
[1752249035313,1.75840467,117170.0,117160.0,1.46107414]
[1752249035746,1.74987355,117170.0,117160.0,1.46107414]
[1752249035963,1.72001463,117170.0,117160.0,1.46107414]
[1752249036168,1.71148351,117170.0,117160.0,1.46107414]
[1752249036637,1.67309347,117170.0,117160.0,1.46107414]
[1752249036849,1.67309347,117170.0,117160.0,1.46507414]
[1752249037063,1.66456235,117170.0,117160.0,1.46857414]
[1752249037278,1.63470343,117170.0,117160.0,1.46857414]
[1752249037483,1.62617231,117170.0,117160.0,1.49617614]
[1752249037735,1.61764119,117170.0,117160.0,1.49617614]
[1752249037951,1.58442103,117170.0,117160.0,1.49617614]
[1752249038157,1.57588991,117170.0,117160.0,1.49617614]
[1752249038366,1.57588991,117170.0,117160.0,0.99051635]
[1752249038585,1.53750824,117170.0,117160.0,1.49217614]
[1752249039076,1.52897898,117170.0,117160.0,1.49717614]
[1752249039320,1.49912657,117170.0,117160.0,1.49717614]
[1752249039527,1.48840861,117170.0,117160.0,1.49717614]
[1752249039735,1.45002694,117170.0,117160.0,1.49717614]
[1752249040192,0.23154553,117170.0,117160.0,1.49117614]
[1752249040406,0.97214759,117200.0,117190.0,0.65450244]
[1752249040612,0.96361833,117200.0,117190.0,2.22721195]
[1752249040829,0.96361833,117200.0,117190.0,2.23021195]
[1752249041034,0.92523666,117200.0,117190.0,2.25579495]
[1752249041437,0.9167074,117200.0,117190.0,2.26619495]
[1752249041627,0.87841059,117200.0,117190.0,2.26619495]
[1752249041828,0.002,117210.0,117200.0,0.29624485]
[1752249042035,0.0629642,117250.0,117240.0,0.05]
[1752249042259,0.0629642,117250.0,117240.0,1.12600846]
[1752249042397,0.05443494,117250.0,117240.0,1.12600846]
[1752249042591,0.10249346,117270.0,117250.0,0.26921983]
[1752249042866,0.10249346,117270.0,117260.0,0.35654993]
[1752249043064,0.10543346,117270.0,117260.0,0.35654993]
[1752249043264,0.10593368,117270.0,117260.0,0.35654993]
[1752249044117,0.64570131,117270.0,117260.0,0.35638993]
[1752249044414,0.31058812,117270.0,117260.0,0.35638993]
[1752249044616,0.31358812,117270.0,117260.0,0.35638993]